bitfinex/quotes_BTCUSD_20240721
["timestamp","ask_amount","ask_price","bid_price","bid_amount"]
[1721590206322,0.0797,67538.0,67527.0,0.00225434]
[1721590206538,0.34390466,67532.0,67518.0,0.00504834]
[1721590206740,0.0797,67538.0,67527.0,0.00225434]
[1721590206949,0.0797,67538.0,67528.0,0.15663608]
[1721590208280,0.002,67549.0,67528.0,0.49797782]
[1721590208517,0.002,67549.0,67548.0,0.00207445]
[1721590208745,0.002,67549.0,67531.0,0.05]
[1721590208746,0.002,67549.0,67547.0,0.00207445]
[1721590208986,0.148042,67548.0,67547.0,0.00207445]
[1721590209219,0.148042,67548.0,67532.0,0.15438174]
[1721590209220,0.002,67549.0,67544.0,0.00207445]
[1721590209465,0.002,67549.0,67532.0,0.15438174]
[1721590209466,0.07717479,67545.0,67532.0,0.15438174]
[1721590209731,0.07717479,67545.0,67533.0,0.46304871]
[1721590209732,0.07717479,67538.0,67533.0,0.46304871]
[1721590209985,0.2501,67549.0,67535.0,0.00207445]
[1721590210238,0.296103,67544.0,67535.0,0.00207445]
[1721590210511,0.2501,67549.0,67536.0,0.002794]
[1721590210512,0.148059,67541.0,67536.0,0.002794]
[1721590210748,0.002,67549.0,67536.0,0.002794]
[1721590211213,0.002,67549.0,67548.0,0.46304871]
[1721590211461,0.002,67549.0,67548.0,0.00207445]
[1721590212476,0.002,67549.0,67548.0,0.35449819]
[1721590212717,0.002,67559.0,67548.0,0.35449819]
[1721590212718,0.002,67559.0,67558.0,0.00207445]
[1721590212953,0.002,67559.0,67558.0,0.15645619]
[1721590213428,0.07717479,67581.0,67558.0,0.15645619]
[1721590213429,0.01749224,67609.0,67586.0,0.05]
[1721590213661,0.002,67609.0,67608.0,0.839555]
[1721590213896,0.002,67609.0,67608.0,1.30821017]
[1721590214108,0.002,67609.0,67608.0,1.08538817]
[1721590214324,0.002,67609.0,67608.0,0.34374417]
[1721590214552,0.002,67609.0,67608.0,0.05]
[1721590214780,0.002,67609.0,67579.0,0.10094642]
[1721590214781,0.002,67609.0,67591.0,0.002794]
[1721590214782,0.147944,67593.0,67591.0,0.002794]
[1721590215009,0.147944,67593.0,67569.0,0.0606]
[1721590215010,0.1371,67603.0,67589.0,0.002794]
[1721590215011,0.443851,67590.0,67589.0,0.002794]
[1721590215225,0.2481,67591.0,67569.0,0.002794]
[1721590215439,0.295947,67580.0,67569.0,0.002794]
[1721590215687,0.002,67609.0,67570.0,0.0643]
[1721590215688,0.00257827,67605.0,67570.0,0.0643]
[1721590215898,0.00257827,67605.0,67538.0,0.37330279]
[1721590215899,0.0763,67597.0,67586.0,0.002794]
[1721590216108,0.0763,67597.0,67558.0,0.21498174]
[1721590216109,0.147983,67575.0,67574.0,0.04742173]
[1721590216313,0.0608,67602.0,67568.0,0.002794]
[1721590216314,0.295833,67606.0,67597.0,0.04742173]
[1721590216542,0.0763,67618.0,67568.0,0.052794]
[1721590216543,0.05,67600.0,67599.0,0.04742173]
[1721590217015,0.0763,67618.0,67608.0,0.04742173]
[1721590217245,0.002,67619.0,67608.0,0.04742173]
[1721590217480,0.002,67619.0,67608.0,0.09742173]
[1721590217691,0.002,67619.0,67608.0,0.56415473]
[1721590218206,0.002,67619.0,67608.0,1.33619873]
[1721590218413,0.002,67619.0,67613.0,0.04742173]
[1721590218630,0.002,67619.0,67613.0,0.12337857]
[1721590219130,0.002,67619.0,67613.0,0.27127857]
[1721590219341,0.002,67619.0,67613.0,0.56412273]
[1721590219573,0.002,67619.0,67613.0,0.09742173]
[1721590219781,0.002,67619.0,67613.0,0.24827881]
[1721590220008,0.002,67619.0,67613.0,0.09742173]
[1721590220207,0.002,67619.0,67613.0,0.24827849]
[1721590220433,0.002,67619.0,67613.0,0.86288049]
[1721590220668,0.002,67619.0,67613.0,0.56707949]
[1721590220919,0.443517,67641.0,67640.0,0.20772124]
[1721590221151,0.814295,67641.0,67640.0,0.20772124]
[1721590221591,1.468051,67641.0,67640.0,0.20772124]
[1721590221815,1.468051,67641.0,67598.0,0.002794]
[1721590221816,0.295809,67611.0,67598.0,0.002794]
[1721590222052,0.295683,67640.0,67603.0,0.002794]
[1721590222053,0.295828,67607.0,67603.0,0.002794]
[1721590222272,0.295828,67607.0,67587.0,0.05]
[1721590222273,0.07717479,67605.0,67593.0,0.04742173]
[1721590222482,0.147948,67591.0,67590.0,0.04742173]
[1721590222709,0.0624,67607.0,67592.0,0.04742173]
[1721590222908,0.147944,67593.0,67592.0,0.20180347]
[1721590223129,0.0624,67607.0,67590.0,0.04742173]
[1721590223130,0.07947339,67606.0,67590.0,0.04742173]
[1721590223351,0.07947339,67606.0,67579.0,0.002794]
[1721590223352,0.07947339,67606.0,67580.0,0.05]
[1721590223353,0.443911,67581.0,67580.0,0.05]
[1721590223561,0.147992,67571.0,67570.0,0.04742173]
[1721590223784,0.147983,67575.0,67571.0,0.04742173]
[1721590223989,0.295935,67583.0,67571.0,0.20180347]
[1721590224223,0.15937827,67589.0,67565.0,0.04742173]
[1721590224438,0.15937827,67589.0,67553.0,0.002794]
[1721590224439,0.1,67588.0,67569.0,0.04742173]
[1721590224651,0.1,67588.0,67569.0,0.15438174]
[1721590224862,0.1,67588.0,67564.0,0.04742173]
[1721590224863,0.148005,67565.0,67564.0,0.04742173]
[1721590225080,0.1568,67587.0,67569.0,0.002794]
[1721590225294,0.1568,67587.0,67555.0,0.0593]
[1721590225295,0.0624,67575.0,67563.0,0.04742173]
[1721590225514,0.444055,67559.0,67558.0,0.04742173]
[1721590226006,0.444055,67559.0,67556.0,0.04742173]
[1721590226007,0.148023,67557.0,67556.0,0.04742173]
[1721590226225,0.0624,67575.0,67558.0,0.04742173]
[1721590226453,0.0624,67575.0,67565.0,0.04742173]
[1721590226722,0.36964705,67586.0,67571.0,0.04742173]
[1721590226723,0.147967,67583.0,67571.0,0.04742173]
[1721590226948,0.0624,67586.0,67571.0,0.04742173]
[1721590226949,0.00567663,67574.0,67571.0,0.20180347]
[1721590227156,0.147986,67574.0,67571.0,0.20180347]
[1721590227368,0.0624,67586.0,67571.0,0.20180347]
[1721590227584,0.00570174,67573.0,67571.0,0.20180347]
[1721590227813,0.0624,67586.0,67558.0,0.002794]
[1721590227814,0.148012,67562.0,67558.0,0.002794]
[1721590228029,0.00563982,67561.0,67558.0,0.002794]
[1721590228257,0.148004,67566.0,67556.0,0.04742173]
[1721590228487,0.31376001,67578.0,67556.0,0.04742173]
[1721590228488,0.00567279,67560.0,67556.0,0.04742173]
[1721590228703,0.31376001,67578.0,67556.0,0.04742173]
[1721590228916,0.00564281,67559.0,67553.0,0.04742173]
[1721590229141,0.00564281,67559.0,67545.0,0.148048]
[1721590229142,0.295992,67570.0,67556.0,0.04742173]
[1721590229359,0.00257827,67593.0,67562.0,0.12459652]
[1721590229569,0.00257827,67593.0,67571.0,0.04742173]
[1721590229570,0.147971,67581.0,67571.0,0.04742173]
[1721590229783,0.295931,67584.0,67572.0,0.002794]
[1721590229784,0.147965,67584.0,67572.0,0.002794]
[1721590229989,0.07717479,67599.0,67572.0,0.002794]
[1721590229990,0.0057947,67590.0,67580.0,0.04742173]
[1721590230205,0.0057947,67590.0,67583.0,0.04742173]
[1721590230419,0.00594288,67589.0,67583.0,0.20180347]
[1721590230650,0.00594288,67589.0,67584.0,0.002794]
[1721590230896,0.00594288,67589.0,67588.0,0.04742173]
[1721590231128,0.00594288,67589.0,67588.0,0.20180347]
[1721590231329,0.00594288,67589.0,67588.0,0.34975847]
[1721590231551,0.0057947,67590.0,67589.0,0.04742173]
[1721590231771,0.0057947,67590.0,67589.0,0.20180347]
[1721590231983,0.0057947,67590.0,67586.0,0.04742173]
[1721590232190,0.0057947,67590.0,67546.0,0.6]
[1721590232191,0.07717479,67587.0,67582.0,0.04742173]
[1721590232405,0.00595348,67589.0,67588.0,0.24537673]
[1721590232621,0.00595348,67589.0,67584.0,0.15438174]
[1721590232622,0.0057947,67590.0,67589.0,0.24816873]
[1721590232845,0.0057947,67590.0,67589.0,0.68673315]
[1721590233064,0.0057947,67590.0,67589.0,1.13422689]
[1721590233065,1e-08,67590.0,67589.0,1.13422689]
[1721590233273,0.0776,67630.0,67624.0,0.04742173]
[1721590233498,0.0776,67630.0,67606.0,0.05]
[1721590233499,0.14788,67622.0,67621.0,0.04742173]
[1721590233741,0.46304871,67633.0,67621.0,0.04742173]
[1721590233742,0.07717479,67642.0,67622.0,0.04742173]
[1721590233959,0.07717479,67642.0,67624.0,0.04742173]
[1721590233960,0.295695,67638.0,67624.0,0.04742173]
[1721590234178,0.295695,67638.0,67615.0,0.00295743]
[1721590234179,0.0624,67645.0,67632.0,0.04742173]
[1721590234808,0.147842,67640.0,67632.0,0.04742173]
[1721590235030,0.07717479,67639.0,67625.0,0.20180347]
[1721590235252,0.07717479,67639.0,67628.0,0.04742173]
[1721590235483,0.07717479,67639.0,67619.0,0.04742173]
[1721590235484,0.07717479,67632.0,67619.0,0.04742173]
[1721590235716,0.07717479,67639.0,67628.0,0.04742173]
[1721590235953,0.07717479,67639.0,67630.0,0.04742173]
[1721590236189,0.0624,67645.0,67632.0,0.04742173]
[1721590236190,0.147853,67635.0,67632.0,0.04742173]
[1721590236405,0.147853,67635.0,67617.0,0.147891]
[1721590236406,0.002,67649.0,67638.0,0.04742173]
[1721590236627,0.002,67649.0,67618.0,0.08013181]
[1721590236628,0.002,67649.0,67643.0,0.04742173]
[1721590237072,0.156164,67648.0,67643.0,0.04242173]
[1721590237306,0.00834,67648.0,67643.0,0.04242173]
[1721590237507,0.00834,67648.0,67639.0,0.15438174]
[1721590237721,0.147839,67641.0,67638.0,0.04242173]
[1721590237927,0.07717479,67642.0,67638.0,0.19680347]
[1721590238146,0.07717479,67642.0,67628.0,0.05]
[1721590238147,0.00168273,67640.0,67639.0,0.19680347]
[1721590238366,0.00834,67648.0,67647.0,0.04242173]
[1721590238570,0.00834,67648.0,67632.0,0.0778]
[1721590238571,0.00834,67648.0,67642.0,0.04242173]
[1721590238572,0.147834,67643.0,67642.0,0.04242173]
[1721590238794,0.00834,67648.0,67647.0,0.04242173]
[1721590239433,0.00834,67648.0,67647.0,0.19680347]
[1721590239860,0.00834,67648.0,67647.0,0.24680347]
[1721590240278,0.00834,67648.0,67646.0,0.04242173]
[1721590240488,0.00834,67648.0,67647.0,0.04242173]
[1721590240907,0.00834,67648.0,67647.0,0.19680347]
[1721590241130,0.00834,67648.0,67647.0,0.37253075]
[1721590241335,0.00834,67648.0,67647.0,0.5525244]
[1721590241760,0.00834,67648.0,67647.0,0.56740087]
[1721590241963,0.00834,67648.0,67647.0,1.4545284]
[1721590242174,0.00017893,67652.0,67651.0,0.74267273]
[1721590242384,0.00832,67674.0,67651.0,0.74267273]
[1721590242385,0.00832,67674.0,67657.0,0.74263373]
[1721590242599,0.00832,67674.0,67657.0,1.66961144]
[1721590242811,0.00832,67674.0,67657.0,0.35518344]
[1721590243013,0.00832,67674.0,67657.0,0.44455312]
[1721590243220,0.00832,67674.0,67657.0,0.59235712]
[1721590243430,0.00832,67674.0,67657.0,1.06029544]
[1721590243631,0.00832,67674.0,67657.0,1.35590344]
[1721590243837,0.05373011,67685.0,67684.0,0.03410362]
[1721590244042,0.04568,67685.0,67684.0,0.38623036]
[1721590244250,0.05419816,67685.0,67684.0,0.68172036]
[1721590244459,0.05419816,67685.0,67684.0,0.63172036]
[1721590244460,0.04568,67685.0,67684.0,0.63172036]
[1721590244665,0.04568,67685.0,67684.0,0.33623036]
[1721590244880,0.04568,67685.0,67684.0,0.23848536]
[1721590245314,0.04568,67685.0,67684.0,0.68172036]
[1721590245554,0.002,67689.0,67688.0,0.57731262]
[1721590245761,0.002,67689.0,67688.0,0.40442721]
[1721590245977,0.46304871,67739.0,67737.0,0.03410362]
[1721590246204,0.46304871,67739.0,67712.0,0.07717479]
[1721590246205,0.46304871,67738.0,67729.0,0.03410362]
[1721590246439,0.46304871,67738.0,67713.0,0.00295241]
[1721590246440,0.147651,67727.0,67725.0,0.03410362]
[1721590246650,0.147651,67727.0,67713.0,0.00295272]
[1721590246651,0.2481,67733.0,67723.0,0.03410362]
[1721590246873,0.147664,67721.0,67720.0,0.03410362]
[1721590247096,0.00837,67726.0,67720.0,0.03410362]
[1721590247307,0.00837,67726.0,67712.0,0.03410362]
[1721590247523,0.00837,67726.0,67707.0,0.03410362]
[1721590247524,0.2481,67721.0,67707.0,0.03410362]
[1721590247761,0.2481,67721.0,67703.0,0.002794]
[1721590247959,0.2481,67721.0,67703.0,0.15438174]
[1721590247960,0.443104,67704.0,67703.0,0.15438174]
[1721590248166,0.295379,67710.0,67697.0,0.03410362]
[1721590248371,0.295379,67710.0,67686.0,0.03410362]
[1721590248372,0.55937638,67710.0,67686.0,0.03410362]
[1721590248587,0.55937638,67710.0,67673.0,0.0809]
[1721590248588,0.738595,67696.0,67695.0,0.03410362]
[1721590249007,0.0607,67697.0,67686.0,0.03410362]
[1721590249215,0.147738,67687.0,67686.0,0.03410362]
[1721590249417,0.443215,67687.0,67686.0,0.03410362]
[1721590249638,0.0607,67697.0,67677.0,0.03410362]
[1721590249847,0.0607,67697.0,67671.0,0.03410362]
[1721590249848,0.2481,67688.0,67671.0,0.03410362]
[1721590250077,0.147771,67672.0,67671.0,0.03410362]
[1721590250534,0.147756,67679.0,67678.0,0.03410362]
[1721590250745,0.147753,67681.0,67679.0,0.03410362]
[1721590250982,0.01589638,67703.0,67679.0,0.03410362]
[1721590250983,0.0797,67701.0,67689.0,0.03410362]
[1721590251205,0.0797,67701.0,67679.0,0.07717479]
[1721590251206,0.443137,67699.0,67698.0,0.03410362]
[1721590251422,0.443137,67699.0,67698.0,0.15438174]
[1721590251635,0.0797,67702.0,67698.0,0.15438174]
[1721590251856,0.0797,67702.0,67686.0,0.07717479]
[1721590251857,0.1595,67706.0,67686.0,0.07717479]
[1721590252079,0.0607,67700.0,67677.0,0.002794]
[1721590252305,0.0607,67700.0,67672.0,0.11127841]
[1721590252306,0.147767,67674.0,67673.0,0.002794]
[1721590252517,0.443301,67674.0,67673.0,0.15438174]
[1721590252933,0.738835,67674.0,67673.0,0.15438174]
[1721590253555,0.295515,67679.0,67665.0,0.11127841]
[1721590253556,0.0798,67679.0,67665.0,0.11127841]
[1721590253769,0.147769,67673.0,67672.0,0.07717479]
[1721590254199,0.0798,67687.0,67673.0,0.002794]
[1721590254408,0.147769,67673.0,67672.0,0.07717479]
[1721590254619,0.0797,67698.0,67682.0,0.03410362]
[1721590254876,0.2481,67703.0,67692.0,0.11127841]
[1721590254877,0.443176,67693.0,67692.0,0.11127841]
[1721590255115,0.738627,67693.0,67692.0,0.26566015]
[1721590255328,0.1404,67700.0,67693.0,0.002794]
[1721590255549,0.1404,67700.0,67693.0,0.15717574]
[1721590255550,0.147719,67696.0,67693.0,0.15717574]
[1721590255773,0.1404,67700.0,67685.0,0.07717479]
[1721590255774,0.443215,67687.0,67686.0,0.03410362]
[1721590255990,0.147738,67687.0,67686.0,0.18848536]
[1721590256713,0.1404,67700.0,67690.0,0.03410362]
[1721590256927,0.147722,67695.0,67693.0,0.07717479]
[1721590257161,0.1404,67700.0,67693.0,0.07717479]
[1721590257162,0.0797,67700.0,67693.0,0.07717479]
[1721590257397,0.0797,67703.0,67701.0,0.00275295]
[1721590257603,0.0605,67709.0,67701.0,0.00275295]
[1721590257604,0.1595,67705.0,67701.0,0.15438174]
[1721590257815,0.1595,67705.0,67703.0,0.03685657]
[1721590258012,0.1595,67705.0,67704.0,0.15438174]
[1721590258218,0.1595,67705.0,67704.0,0.15338174]
[1721590258426,0.307199,67705.0,67704.0,0.15338174]
[1721590258642,0.307199,67705.0,67682.0,0.147748]
[1721590258643,0.01589638,67700.0,67683.0,0.00275295]
[1721590258850,1.282315,67684.0,67678.0,0.00275295]
[1721590259064,0.147765,67675.0,67672.0,0.03685657]
[1721590259273,0.0605,67682.0,67665.0,0.03410362]
[1721590259274,0.147769,67673.0,67665.0,0.03410362]
[1721590259493,0.0765,67681.0,67664.0,0.03410362]
[1721590259695,0.295509,67680.0,67669.0,0.03410362]
[1721590259902,0.1568,67691.0,67665.0,0.23155653]
[1721590259903,0.0765,67697.0,67679.0,0.07717479]
[1721590260114,0.05,67694.0,67680.0,0.00275295]
[1721590260324,0.0765,67697.0,67681.0,0.03410362]
[1721590260532,0.0765,67697.0,67680.0,0.03410362]
[1721590260742,0.0765,67697.0,67680.0,0.18848536]
[1721590260743,0.147751,67681.0,67680.0,0.18848536]
[1721590260945,0.295491,67684.0,67680.0,0.18848536]
[1721590261152,0.147751,67681.0,67680.0,0.18848536]
[1721590261368,0.295483,67686.0,67678.0,0.03410362]
[1721590261369,0.147756,67679.0,67678.0,0.03410362]
[1721590261576,0.2481,67690.0,67678.0,0.18848536]
[1721590261782,0.443268,67679.0,67678.0,0.18848536]
[1721590261991,0.2481,67690.0,67665.0,0.11127841]
[1721590262206,0.295491,67684.0,67672.0,0.07992774]
[1721590262429,0.1,67689.0,67679.0,0.07717479]
[1721590262430,0.147754,67680.0,67679.0,0.07717479]
[1721590262668,0.00803606,67695.0,67687.0,0.03410362]
[1721590262853,0.0605,67699.0,67688.0,0.15438174]
[1721590263107,0.00789565,67704.0,67697.0,0.03410362]
[1721590263354,0.01589638,67721.0,67697.0,0.03410362]
[1721590263355,0.00788058,67711.0,67697.0,0.18848536]
[1721590263514,0.0795,67730.0,67700.0,0.03410362]
[1721590263515,0.0797,67704.0,67700.0,0.03410362]
[1721590263659,0.0797,67704.0,67698.0,0.11127841]
[1721590263863,0.147725,67693.0,67692.0,0.03410362]
[1721590264080,0.0797,67704.0,67703.0,0.03410362]
[1721590264081,0.1592,67704.0,67703.0,0.03410362]
[1721590264287,0.0797,67704.0,67703.0,0.03410362]
[1721590264501,0.0797,67704.0,67703.0,0.2971931]
[1721590264733,0.0795,67733.0,67713.0,0.03410362]
[1721590264734,0.295284,67732.0,67713.0,0.03410362]
[1721590264935,0.295284,67732.0,67707.0,0.03410362]
[1721590264936,0.46304871,67719.0,67707.0,0.03410362]
[1721590265143,0.2481,67724.0,67707.0,0.03685657]
[1721590265355,0.2481,67724.0,67707.0,0.18848536]
[1721590265566,0.2481,67724.0,67710.0,0.03410362]
[1721590265790,0.2481,67724.0,67693.0,0.03410362]
[1721590265791,0.14772,67696.0,67693.0,0.03410362]
[1721590266014,0.1451,67711.0,67701.0,0.00275295]
[1721590266015,0.443118,67702.0,67701.0,0.00275295]
[1721590266214,0.443118,67702.0,67663.0,0.295579]
[1721590266215,0.1451,67711.0,67692.0,0.03410362]
[1721590266439,0.0795,67711.0,67709.0,0.03410362]
[1721590266647,0.0797,67712.0,67704.0,0.03410362]
[1721590266859,0.443098,67705.0,67704.0,0.03410362]
[1721590267058,0.443098,67705.0,67704.0,0.18848536]
[1721590267483,0.443098,67705.0,67686.0,0.05078959]
[1721590267484,0.295399,67705.0,67696.0,0.03410362]
[1721590267685,0.147714,67699.0,67697.0,0.27708542]
[1721590267904,0.2481,67713.0,67702.0,0.03410362]
[1721590268114,0.0797,67716.0,67701.0,0.03410362]
[1721590268115,0.147706,67702.0,67701.0,0.03410362]
[1721590268320,0.0797,67716.0,67701.0,0.12269942]
[1721590268543,0.01589638,67719.0,67689.0,0.11127841]
[1721590268544,0.2481,67713.0,67689.0,0.11127841]
[1721590268756,0.2481,67713.0,67696.0,0.00275295]
[1721590268757,0.443151,67697.0,67696.0,0.00275295]
[1721590268996,0.295418,67701.0,67691.0,0.00275295]
[1721590268997,0.443182,67692.0,67691.0,0.00275295]
[1721590269208,0.0795,67698.0,67675.0,0.14739321]
[1721590269209,0.0656,67697.0,67675.0,0.14739321]
[1721590269418,0.0656,67697.0,67672.0,0.12717479]
[1721590269419,0.0656,67697.0,67679.0,0.11127841]
[1721590269630,0.0656,67697.0,67672.0,0.07717479]
[1721590269631,0.0795,67698.0,67688.0,0.07717479]
[1721590269851,0.0795,67698.0,67697.0,0.07717479]
[1721590269852,0.147714,67698.0,67697.0,0.07717479]
[1721590270300,0.0656,67706.0,67683.0,0.03410362]
[1721590270509,0.0797,67706.0,67697.0,0.07717479]
[1721590270718,0.1797,67707.0,67704.0,0.07717479]
[1721590270923,0.0797,67707.0,67704.0,0.07717479]
[1721590271138,0.0797,67708.0,67707.0,0.03410362]
[1721590271357,0.0656,67717.0,67709.0,0.03410362]
[1721590271358,0.1453,67717.0,67709.0,0.03410362]
[1721590271626,0.14768,67714.0,67710.0,0.12543933]
[1721590271835,0.0797,67717.0,67711.0,0.19986117]
[1721590272101,0.1592,67722.0,67712.0,0.12137248]
[1721590272400,0.1592,67722.0,67713.0,0.00275295]
[1721590272607,0.1592,67722.0,67711.0,0.07717479]
[1721590272608,0.147674,67717.0,67711.0,0.07717479]
[1721590272866,0.147674,67717.0,67700.0,0.05076289]
[1721590272867,0.1592,67722.0,67705.0,0.03410362]
[1721590273095,0.295343,67718.0,67713.0,0.07717479]
[1721590273298,0.1592,67722.0,67713.0,0.07717479]
[1721590273500,0.147672,67718.0,67714.0,0.00275295]
[1721590273709,0.1592,67722.0,67714.0,0.00275295]
[1721590274131,0.0797,67722.0,67720.0,0.07717479]
[1721590274332,0.08807,67726.0,67725.0,0.03410362]
[1721590274537,0.08807,67726.0,67725.0,0.18848536]
[1721590275145,0.08807,67726.0,67725.0,0.33614036]
[1721590275345,0.08807,67726.0,67725.0,0.18848536]
[1721590275551,0.00837,67726.0,67725.0,0.18551654]
[1721590276155,0.00837,67726.0,67725.0,0.67848254]
[1721590276351,0.00837,67726.0,67725.0,0.23551654]
[1721590276580,0.00837,67726.0,67725.0,0.18551654]
[1721590276787,0.00837,67726.0,67724.0,0.0311348]
[1721590276987,0.00819239,67726.0,67725.0,0.18551654]
[1721590277511,0.00819239,67726.0,67725.0,0.97379354]
[1721590277862,0.00819239,67726.0,67725.0,0.23551654]
[1721590278074,0.00819239,67726.0,67725.0,0.68143473]
[1721590278287,0.00819239,67726.0,67725.0,1.11509354]
[1721590278502,0.0815,67775.0,67753.0,0.0311348]
[1721590278720,0.42092289,67763.0,67758.0,0.0311348]
[1721590278928,0.42092289,67763.0,67762.0,0.07717479]
[1721590279137,0.0797,67763.0,67762.0,0.07717479]
[1721590279378,0.15205557,67768.0,67762.0,0.07717479]
[1721590279379,0.07979,67764.0,67763.0,0.0311348]
[1721590279611,0.07979,67764.0,67763.0,0.18551654]
[1721590280066,0.07979,67764.0,67760.0,0.10830959]
[1721590280285,0.07979,67764.0,67753.0,0.07717479]
[1721590280528,0.07979,67764.0,67732.0,0.12781622]
[1721590280529,0.2481,67755.0,67735.0,0.0311348]
[1721590280750,0.2481,67755.0,67732.0,0.07717479]
[1721590280751,0.0188652,67751.0,67732.0,0.07717479]
[1721590280963,0.442915,67733.0,67732.0,0.07717479]
[1721590281183,0.0815,67750.0,67732.0,0.23155653]
[1721590281396,0.0815,67750.0,67747.0,0.07717479]
[1721590281612,0.442816,67748.0,67747.0,0.07717479]
[1721590281872,0.738027,67748.0,67747.0,0.07717479]
[1721590282084,0.1,67754.0,67748.0,0.0311348]
[1721590282306,0.25609053,67766.0,67747.0,0.23155653]
[1721590282307,0.00799053,67766.0,67759.0,0.0311348]
[1721590282530,0.00799053,67766.0,67759.0,0.26269133]
[1721590282723,0.54404871,67775.0,67759.0,0.26269133]
[1721590282968,0.081,67775.0,67759.0,0.31269133]
[1721590283182,0.07979,67764.0,67763.0,0.05]
[1721590283395,0.07979,67764.0,67763.0,0.18551654]
[1721590283617,9e-05,67764.0,67763.0,0.31926767]
[1721590283866,9e-05,67764.0,67763.0,0.46684067]
[1721590284099,4.268492,67780.0,67768.0,0.1380348]
[1721590284330,4.268492,67780.0,67778.0,0.8188348]
[1721590284558,4.230092,67780.0,67779.0,0.6237488]
[1721590284770,4.230092,67780.0,67779.0,0.89087874]
[1721590284989,3.771092,67780.0,67779.0,1.13595474]
[1721590285215,2.12804034,67780.0,67779.0,8.65648232]
[1721590285439,1.35164701,67780.0,67779.0,6.51488978]
[1721590285656,1.08941763,67780.0,67779.0,3.45238661]
[1721590285880,1.08941763,67780.0,67779.0,2.21727239]
[1721590285881,1.08286734,67780.0,67779.0,2.21727239]
[1721590286098,1.08941763,67780.0,67779.0,1.62210184]
[1721590286322,1.08286734,67780.0,67779.0,0.28288421]
[1721590286538,1.08286734,67780.0,67779.0,0.0311348]
[1721590287023,0.14754,67779.0,67766.0,0.05]
[1721590287248,1.08286734,67780.0,67759.0,0.07717479]
[1721590287249,0.05,67778.0,67769.0,0.00275295]
[1721590287462,0.295095,67775.0,67756.0,0.07717479]
[1721590287692,0.147557,67771.0,67756.0,0.07717479]
[1721590287911,0.295121,67769.0,67756.0,0.07717479]
[1721590288127,0.002794,67768.0,67756.0,0.07717479]
[1721590288315,0.295106,67773.0,67739.0,0.5402235]
[1721590288316,0.05,67770.0,67739.0,0.5402235]
[1721590288572,0.265166,67759.0,67739.0,0.5402235]
[1721590288778,0.05,67770.0,67739.0,0.5402235]
[1721590288779,0.002794,67758.0,67739.0,0.5402235]
[1721590289009,0.002794,67769.0,67739.0,0.07717479]
[1721590289227,0.002794,67769.0,67739.0,0.07617479]
[1721590289450,0.05,67768.0,67739.0,0.07617479]
[1721590289662,0.002794,67767.0,67739.0,0.07617479]
[1721590289876,0.05,67770.0,67747.0,0.07717479]
[1721590289877,0.002794,67769.0,67747.0,0.07717479]
[1721590290353,0.002794,67769.0,67740.0,0.08012628]
[1721590290602,0.295171,67758.0,67741.0,0.46304871]
[1721590290895,0.002794,67757.0,67740.0,0.07717479]
[1721590291173,0.07717479,67772.0,67732.0,0.05730119]
[1721590291174,0.002794,67767.0,67732.0,0.05730119]
[1721590291420,0.147596,67753.0,67741.0,0.00295154]
[1721590291683,0.002794,67752.0,67732.0,0.05730119]
[1721590291905,0.002794,67764.0,67733.0,0.00295171]
[1721590292127,0.052794,67764.0,67733.0,0.00295171]
[1721590292347,0.052794,67764.0,67720.0,0.12776449]
[1721590292348,0.05,67748.0,67713.0,0.1982697]
[1721590292570,0.07717479,67750.0,67722.0,0.46304871]
[1721590292571,0.07717479,67736.0,67722.0,0.46304871]
[1721590292783,0.07717479,67736.0,67701.0,0.46304871]
[1721590292784,0.05,67727.0,67701.0,0.46304871]
[1721590292997,0.05,67727.0,67702.0,0.12265387]
[1721590293242,0.05,67727.0,67694.0,0.07717479]
[1721590293243,0.07717479,67726.0,67694.0,0.07717479]
[1721590293452,0.2981,67730.0,67694.0,0.07717479]
[1721590293453,0.147658,67724.0,67702.0,0.46304871]
[1721590293680,0.147658,67724.0,67693.0,0.295449]
[1721590293681,0.147677,67715.0,67692.0,0.147726]
[1721590293934,0.08012642,67729.0,67697.0,0.147716]
[1721590294191,0.08012642,67729.0,67692.0,0.295454]
[1721590294192,0.08012642,67729.0,67698.0,0.00295333]
[1721590294451,0.05,67726.0,67698.0,0.15733507]
[1721590294734,0.08012642,67729.0,67698.0,0.15733507]
[1721590294735,0.2481,67718.0,67698.0,0.15438174]
[1721590295840,0.16481264,67728.0,67684.0,0.46304871]
[1721590295841,0.2481,67740.0,67715.0,0.295352]
[1721590296092,0.14763,67737.0,67716.0,0.00295248]
[1721590296345,0.14763,67737.0,67701.0,0.1568]
[1721590296346,0.07717479,67733.0,67699.0,0.12781601]
[1721590296597,0.002794,67732.0,67713.0,0.147681]
[1721590296851,0.002794,67732.0,67699.0,0.07717479]
[1721590296852,0.002794,67732.0,67714.0,0.15733456]
[1721590297120,0.002794,67732.0,67714.0,0.30501356]
[1721590297345,0.40497479,67740.0,67714.0,0.15733456]
[1721590297346,0.002794,67739.0,67714.0,0.15733456]
[1721590297572,0.002794,67739.0,67728.0,0.15438174]
[1721590297802,0.0643,67759.0,67715.0,0.37575698]
[1721590297803,0.07717479,67738.0,67729.0,0.12558163]
[1721590298032,0.07717479,67738.0,67704.0,0.1568]
[1721590298033,0.147634,67735.0,67711.0,0.147685]
[1721590298241,0.002794,67734.0,67712.0,0.12264169]
[1721590298462,0.002794,67739.0,67713.0,0.12264169]
[1721590298680,0.0643,67759.0,67714.0,0.00295237]
[1721590298681,0.295216,67747.0,67714.0,0.00295237]
[1721590298902,0.002794,67746.0,67733.0,0.15438174]
[1721590299131,0.46304871,67752.0,67734.0,0.00295202]
[1721590299132,0.002794,67751.0,67734.0,0.00295202]
[1721590299353,0.22756879,67751.0,67735.0,0.15438174]
[1721590299586,0.07996879,67751.0,67736.0,0.00295193]
[1721590299812,0.07996879,67751.0,67737.0,0.15438174]
[1721590300261,0.22756979,67751.0,67737.0,0.15438174]
[1721590300476,0.22756979,67751.0,67717.0,0.46304871]
[1721590300477,0.147646,67730.0,67717.0,0.46304871]
[1721590300731,0.0643,67735.0,67718.0,0.15733449]
[1721590301008,0.002794,67734.0,67721.0,0.15438174]
[1721590301270,0.07717479,67739.0,67722.0,0.1226454]